[Event "Early-Titled-Tuesday-Blitz-March-26-2024"]
[Site "Chess.com"]
[Date "2024.03.26"]
[Round "1"]
[White "wqws"]
[Black "agvania123"]
[Result "1/2-1/2"]
[WhiteElo "2734"]
[BlackElo "2419"]
[TimeControl "180+1"]
[EndTime "8:07:52 PDT"]
[Termination "Game drawn by stalemate"]

1. e4 {[%clk 0:02:59.8]} 1... d5 {[%clk 0:02:59.1]} 2. exd5 {[%clk 0:02:59.7]}
2... Qxd5 {[%clk 0:03:00]} 3. Nc3 {[%clk 0:02:59.1]} 3... Qd8 {[%clk 0:03:00.5]}
4. d4 {[%clk 0:02:58.9]} 4... Nf6 {[%clk 0:03:00.8]} 5. Nf3 {[%clk 0:02:58.1]}
5... Bg4 {[%clk 0:02:59.4]} 6. Bc4 {[%clk 0:02:57.5]} 6... e6 {[%clk 0:02:56.7]}
7. Be3 {[%clk 0:02:55.1]} 7... Nc6 {[%clk 0:02:55.3]} 8. h3 {[%clk 0:02:53.2]}
8... Bh5 {[%clk 0:02:52.3]} 9. g4 {[%clk 0:02:51.5]} 9... Bg6 {[%clk 0:02:52.2]}
10. Ne5 {[%clk 0:02:51.9]} 10... Nxe5 {[%clk 0:02:51]} 11. dxe5 {[%clk
0:02:52.8]} 11... Ne4 {[%clk 0:02:49.8]} 12. Qf3 {[%clk 0:02:46.1]} 12... Nxc3
{[%clk 0:02:38.7]} 13. bxc3 {[%clk 0:02:46.2]} 13... c6 {[%clk 0:02:38.6]} 14.
O-O {[%clk 0:02:46.2]} 14... Qc7 {[%clk 0:02:34.8]} 15. Qg3 {[%clk 0:02:39.6]}
15... Be7 {[%clk 0:02:21.8]} 16. Rac1 {[%clk 0:02:37.3]} 16... O-O-O {[%clk
0:02:01.4]} 17. a4 {[%clk 0:01:57.9]} 17... h5 {[%clk 0:01:59.8]} 18. g5 {[%clk
0:01:57.4]} 18... h4 {[%clk 0:01:59.2]} 19. Qf3 {[%clk 0:01:55.6]} 19... Qxe5
{[%clk 0:01:44]} 20. a5 {[%clk 0:01:55.2]} 20... Be4 {[%clk 0:01:09.2]} 21. Qg4
{[%clk 0:01:51]} 21... Bf5 {[%clk 0:00:59.7]} 22. Qg2 {[%clk 0:01:46.8]} 22...
Qe4 {[%clk 0:00:57.7]} 23. Qxe4 {[%clk 0:01:37.2]} 23... Bxe4 {[%clk 0:00:58.6]}
24. Bxa7 {[%clk 0:01:37.5]} 24... Bxg5 {[%clk 0:00:56.7]} 25. f4 {[%clk
0:01:35.7]} 25... Bf6 {[%clk 0:00:54.8]} 26. a6 {[%clk 0:01:35.4]} 26... b5
{[%clk 0:00:53.4]} 27. Be2 {[%clk 0:01:32.1]} 27... Bxc3 {[%clk 0:00:50.9]} 28.
Bb6 {[%clk 0:01:31.5]} 28... Bd4+ {[%clk 0:00:48.1]} 29. Bxd4 {[%clk 0:01:31.1]}
29... Rxd4 {[%clk 0:00:49]} 30. Kf2 {[%clk 0:01:31.7]} 30... Rhd8 {[%clk
0:00:46.6]} 31. Rg1 {[%clk 0:01:27.4]} 31... Bg6 {[%clk 0:00:27.9]} 32. Rg4
{[%clk 0:01:24.6]} 32... Kc7 {[%clk 0:00:27.1]} 33. Rxh4 {[%clk 0:01:24.4]}
33... Rd2 {[%clk 0:00:27.2]} 34. Ke3 {[%clk 0:01:14.6]} 34... Rxc2 {[%clk
0:00:25.7]} 35. Rxc2 {[%clk 0:01:13.7]} 35... Bxc2 {[%clk 0:00:26.6]} 36. Rg4
{[%clk 0:01:14]} 36... g6 {[%clk 0:00:25]} 37. Rg1 {[%clk 0:01:13.2]} 37... Bf5
{[%clk 0:00:24.4]} 38. Rc1 {[%clk 0:01:12.9]} 38... Kb6 {[%clk 0:00:22]} 39. Bf3
{[%clk 0:01:11]} 39... Rd3+ {[%clk 0:00:20.1]} 40. Ke2 {[%clk 0:01:10.6]} 40...
c5 {[%clk 0:00:19.2]} 41. a7 {[%clk 0:01:07]} 41... Kxa7 {[%clk 0:00:18.7]} 42.
Rxc5 {[%clk 0:01:07.4]} 42... Kb6 {[%clk 0:00:19.3]} 43. Rxf5 {[%clk 0:01:04.2]}
43... Rxf3 {[%clk 0:00:16.9]} 44. Rxf7 {[%clk 0:01:04.8]} 44... Rxh3 {[%clk
0:00:17.1]} 45. Rf6 {[%clk 0:01:05.1]} 45... Kc5 {[%clk 0:00:17.4]} 46. Rxe6
{[%clk 0:01:03.9]} 46... Rh4 {[%clk 0:00:15.6]} 47. Ke3 {[%clk 0:00:59.5]} 47...
Rh3+ {[%clk 0:00:15]} 48. Kf2 {[%clk 0:00:58.7]} 48... Rh4 {[%clk 0:00:15.2]}
49. Kg3 {[%clk 0:00:57.3]} 49... Rh1 {[%clk 0:00:15.8]} 50. Kg2 {[%clk
0:00:57.2]} 50... Rh4 {[%clk 0:00:15.3]} 51. Kf3 {[%clk 0:00:57.6]} 51... Rh3+
{[%clk 0:00:15.5]} 52. Kg4 {[%clk 0:00:57.9]} 52... Rh1 {[%clk 0:00:14.4]} 53.
Rxg6 {[%clk 0:00:54.6]} 53... Rg1+ {[%clk 0:00:14.1]} 54. Kf5 {[%clk 0:00:54.8]}
54... Rxg6 {[%clk 0:00:11.2]} 55. Kxg6 {[%clk 0:00:55.7]} 55... b4 {[%clk
0:00:11.9]} 56. f5 {[%clk 0:00:53.5]} 56... b3 {[%clk 0:00:12.8]} 57. f6 {[%clk
0:00:53.7]} 57... b2 {[%clk 0:00:13.7]} 58. f7 {[%clk 0:00:54.3]} 58... b1=Q+
{[%clk 0:00:14.6]} 59. Kg7 {[%clk 0:00:54.9]} 59... Qg1+ {[%clk 0:00:14.7]} 60.
Kh7 {[%clk 0:00:55.1]} 60... Qf2 {[%clk 0:00:15]} 61. Kg7 {[%clk 0:00:55.5]}
61... Qg3+ {[%clk 0:00:15.5]} 62. Kh8 {[%clk 0:00:56]} 62... Qf4 {[%clk
0:00:16.1]} 63. Kg8 {[%clk 0:00:56.4]} 63... Qg5+ {[%clk 0:00:16.7]} 64. Kh8
{[%clk 0:00:56.9]} 64... Qf6+ {[%clk 0:00:17.3]} 65. Kg8 {[%clk 0:00:57.3]}
65... Qg6+ {[%clk 0:00:17.7]} 66. Kh8 {[%clk 0:00:57.9]} 66... Qh6+ {[%clk
0:00:18.1]} 67. Kg8 {[%clk 0:00:58.5]} 67... Qe6 {[%clk 0:00:16.1]} 68. Kh8
{[%clk 0:00:58.6]} 68... Qe7 {[%clk 0:00:14.6]} 69. Kg8 {[%clk 0:00:58.9]} 69...
Qg5+ {[%clk 0:00:14.7]} 70. Kh8 {[%clk 0:00:59.4]} 70... Qf5 {[%clk 0:00:14.1]}
71. Kg8 {[%clk 0:00:59.4]} 71... Qg6+ {[%clk 0:00:14.3]} 72. Kh8 {[%clk
0:01:00]} 72... Qxf7 {[%clk 0:00:15.2]} 1/2-1/2

[Event "Early-Titled-Tuesday-Blitz-March-26-2024"]
[Site "Chess.com"]
[Date "2024.03.26"]
[Round "1"]
[White "newyorkmouse"]
[Black "AsaHoffmann"]
[Result "1-0"]
[WhiteElo "2708"]
[BlackElo "2374"]
[TimeControl "180+1"]
[EndTime "8:07:53 PDT"]
[Termination "newyorkmouse won on time"]

1. e4 {[%clk 0:02:59]} 1... d6 {[%clk 0:02:55.4]} 2. Nf3 {[%clk 0:02:57.6]} 2...
Bg4 {[%clk 0:02:54]} 3. Nc3 {[%clk 0:02:57.6]} 3... c6 {[%clk 0:02:53.4]} 4. d4
{[%clk 0:02:56.4]} 4... Nf6 {[%clk 0:02:53.1]} 5. Bd3 {[%clk 0:02:56.4]} 5... e6
{[%clk 0:02:53]} 6. O-O {[%clk 0:02:55]} 6... d5 {[%clk 0:02:52.6]} 7. exd5
{[%clk 0:02:44.6]} 7... cxd5 {[%clk 0:02:52]} 8. Bf4 {[%clk 0:02:45.2]} 8... Nc6
{[%clk 0:02:51.3]} 9. Nb5 {[%clk 0:02:44.1]} 9... Rc8 {[%clk 0:02:50]} 10. c3
{[%clk 0:02:44]} 10... a6 {[%clk 0:02:47.1]} 11. Na3 {[%clk 0:02:42.5]} 11...
Bxa3 {[%clk 0:02:36.5]} 12. bxa3 {[%clk 0:02:43.4]} 12... Qa5 {[%clk 0:02:36]}
13. Qb3 {[%clk 0:02:39.9]} 13... b5 {[%clk 0:02:33.3]} 14. Nd2 {[%clk
0:02:34.2]} 14... Qb6 {[%clk 0:02:16.9]} 15. a4 {[%clk 0:02:26.5]} 15... Na5
{[%clk 0:02:01.7]} 16. Qb4 {[%clk 0:02:24.6]} 16... Nc6 {[%clk 0:01:52.2]} 17.
Qb3 {[%clk 0:02:13.8]} 17... Na5 {[%clk 0:01:51.4]} 18. Qb2 {[%clk 0:02:02.4]}
18... Qc6 {[%clk 0:01:31.5]} 19. axb5 {[%clk 0:01:42.7]} 19... Qxc3 {[%clk
0:01:29.3]} 20. Qxc3 {[%clk 0:01:42.7]} 20... Rxc3 {[%clk 0:01:28.7]} 21. Rfc1
{[%clk 0:01:43.3]} 21... Rxd3 {[%clk 0:01:04.4]} 22. Rc8+ {[%clk 0:01:40.7]}
22... Kd7 {[%clk 0:01:04.3]} 23. Rxh8 {[%clk 0:01:39.8]} 23... axb5 {[%clk
0:01:02.5]} 24. Rb1 {[%clk 0:01:37.9]} 24... Nc4 {[%clk 0:00:56.2]} 25. Nxc4
{[%clk 0:01:16.6]} 25... dxc4 {[%clk 0:00:54]} 26. h3 {[%clk 0:01:14.6]} 26...
Bf5 {[%clk 0:00:48.8]} 27. Rxb5 {[%clk 0:01:13.8]} 27... Rxd4 {[%clk 0:00:47.9]}
28. Be5 {[%clk 0:01:07.1]} 28... Rd1+ {[%clk 0:00:46.3]} 29. Kh2 {[%clk
0:01:07]} 29... Nd5 {[%clk 0:00:46.2]} 30. Rc5 {[%clk 0:00:59.7]} 30... f6
{[%clk 0:00:43.5]} 31. Bg3 {[%clk 0:00:44.5]} 31... c3 {[%clk 0:00:43.5]} 32.
Rg8 {[%clk 0:00:44.6]} 32... e5 {[%clk 0:00:36.6]} 33. Rgc8 {[%clk 0:00:28.4]}
33... c2 {[%clk 0:00:33]} 34. a4 {[%clk 0:00:23.9]} 34... Ra1 {[%clk 0:00:30.9]}
35. a5 {[%clk 0:00:23.8]} 35... Nb4 {[%clk 0:00:22.9]} 36. h4 {[%clk 0:00:17.8]}
36... Kd6 {[%clk 0:00:22.7]} 37. R8c7 {[%clk 0:00:14.2]} 37... Na2 {[%clk
0:00:16.5]} 38. Rxc2 {[%clk 0:00:13.7]} 38... Bxc2 {[%clk 0:00:15.6]} 39. Rxc2
{[%clk 0:00:14.6]} 39... Nb4 {[%clk 0:00:15.4]} 40. Rb2 {[%clk 0:00:15.2]} 40...
Nd3 {[%clk 0:00:15.1]} 41. Rb7 {[%clk 0:00:14]} 41... Rxa5 {[%clk 0:00:14]} 42.
Rxg7 {[%clk 0:00:14.2]} 42... Ra2 {[%clk 0:00:13.7]} 43. f3 {[%clk 0:00:11.8]}
43... Nf4 {[%clk 0:00:10.5]} 44. Bxf4 {[%clk 0:00:11.8]} 44... exf4 {[%clk
0:00:10.6]} 45. Rxh7 {[%clk 0:00:12.3]} 45... Ke5 {[%clk 0:00:10.9]} 46. Rh5+
{[%clk 0:00:12.6]} 46... f5 {[%clk 0:00:10.4]} 47. Rh6 {[%clk 0:00:13.3]} 47...
Ra1 {[%clk 0:00:09.3]} 48. Rb6 {[%clk 0:00:13.4]} 48... Rc1 {[%clk 0:00:08.5]}
49. Rb5+ {[%clk 0:00:13.6]} 49... Kf6 {[%clk 0:00:08.3]} 50. Rb4 {[%clk
0:00:14.5]} 50... Ke5 {[%clk 0:00:07.8]} 51. h5 {[%clk 0:00:15.1]} 51... Rc8
{[%clk 0:00:07.1]} 52. Kh3 {[%clk 0:00:15.6]} 52... Rg8 {[%clk 0:00:06.8]} 53.
Rb2 {[%clk 0:00:15.3]} 53... Kf6 {[%clk 0:00:04.8]} 54. Kh4 {[%clk 0:00:15.7]}
54... Rh8 {[%clk 0:00:03.4]} 55. Rb6+ {[%clk 0:00:15.4]} 55... Ke5 {[%clk
0:00:03.2]} 56. Rg6 {[%clk 0:00:16]} 56... Rh7 {[%clk 0:00:02]} 57. Kg5 {[%clk
0:00:16.4]} 1-0

[Event "Early-Titled-Tuesday-Blitz-March-26-2024"]
[Site "Chess.com"]
[Date "2024.03.26"]
[Round "1"]
[White "atalz0"]
[Black "BilicVladimir"]
[Result "1-0"]
[WhiteElo "2382"]
[BlackElo "2686"]
[TimeControl "180+1"]
[EndTime "8:07:55 PDT"]
[Termination "atalz0 won by resignation"]

1. d4 {[%clk 0:02:57.9]} 1... c6 {[%clk 0:03:00.9]} 2. c4 {[%clk 0:02:56.9]}
2... d5 {[%clk 0:03:01.8]} 3. e3 {[%clk 0:02:56.3]} 3... Nf6 {[%clk 0:03:01.5]}
4. Nc3 {[%clk 0:02:55.8]} 4... a6 {[%clk 0:03:01.8]} 5. Qc2 {[%clk 0:02:54.9]}
5... b5 {[%clk 0:03:01.7]} 6. b3 {[%clk 0:02:54.6]} 6... e6 {[%clk 0:03:01]} 7.
Nf3 {[%clk 0:02:52.5]} 7... Be7 {[%clk 0:03:01.2]} 8. Bd3 {[%clk 0:02:52.6]}
8... O-O {[%clk 0:03:00.9]} 9. O-O {[%clk 0:02:52.4]} 9... Nbd7 {[%clk
0:03:01.1]} 10. Bb2 {[%clk 0:02:51]} 10... Bb7 {[%clk 0:03:01.1]} 11. c5 {[%clk
0:02:38.5]} 11... Qc7 {[%clk 0:02:58.7]} 12. b4 {[%clk 0:02:36.8]} 12... a5
{[%clk 0:02:57.7]} 13. a3 {[%clk 0:02:36.5]} 13... Rfe8 {[%clk 0:02:53]} 14. h3
{[%clk 0:02:30.9]} 14... Bf8 {[%clk 0:02:52.2]} 15. e4 {[%clk 0:02:24.3]} 15...
dxe4 {[%clk 0:02:50.2]} 16. Nxe4 {[%clk 0:02:25.2]} 16... Nxe4 {[%clk
0:02:49.7]} 17. Bxe4 {[%clk 0:02:26.1]} 17... Nf6 {[%clk 0:02:48.4]} 18. Rad1
{[%clk 0:01:51.1]} 18... g6 {[%clk 0:02:44.4]} 19. Ne5 {[%clk 0:01:44.3]} 19...
Bg7 {[%clk 0:02:42.1]} 20. Bf3 {[%clk 0:01:40.4]} 20... axb4 {[%clk 0:02:39.7]}
21. axb4 {[%clk 0:01:40.1]} 21... Ra4 {[%clk 0:02:39.2]} 22. Bc3 {[%clk
0:01:39.2]} 22... Rea8 {[%clk 0:02:38.6]} 23. Ra1 {[%clk 0:01:33.6]} 23... Nd7
{[%clk 0:02:35.1]} 24. Rxa4 {[%clk 0:01:23.6]} 24... Rxa4 {[%clk 0:02:33.9]} 25.
Re1 {[%clk 0:01:14.2]} 25... Nxe5 {[%clk 0:02:22.2]} 26. dxe5 {[%clk 0:01:14]}
26... Qb8 {[%clk 0:02:18.7]} 27. h4 {[%clk 0:00:56.2]} 27... h5 {[%clk
0:02:16.3]} 28. Qd3 {[%clk 0:00:45.6]} 28... Ra3 {[%clk 0:02:13.1]} 29. Qd4
{[%clk 0:00:42.3]} 29... Qc7 {[%clk 0:01:50.4]} 30. Ra1 {[%clk 0:00:32.1]} 30...
Rxa1+ {[%clk 0:01:42.7]} 31. Bxa1 {[%clk 0:00:33]} 31... Bf8 {[%clk 0:01:39.2]}
32. Bc3 {[%clk 0:00:29.9]} 32... Be7 {[%clk 0:01:39]} 33. Bd2 {[%clk 0:00:25.8]}
33... Qd8 {[%clk 0:01:33.6]} 34. Qxd8+ {[%clk 0:00:13.5]} 34... Bxd8 {[%clk
0:01:33.5]} 35. Bg5 {[%clk 0:00:11.8]} 35... Bc7 {[%clk 0:01:33.7]} 36. Bf6
{[%clk 0:00:12.1]} 36... Kf8 {[%clk 0:01:33.6]} 37. Be4 {[%clk 0:00:12.5]} 37...
Bb8 {[%clk 0:01:26.3]} 38. f4 {[%clk 0:00:12.7]} 38... Bc7 {[%clk 0:01:25.8]}
39. Kf2 {[%clk 0:00:13.1]} 39... Ke8 {[%clk 0:01:22.1]} 40. Kf3 {[%clk
0:00:13.4]} 40... Kd7 {[%clk 0:01:22]} 41. g4 {[%clk 0:00:13.3]} 41... hxg4+
{[%clk 0:01:21.5]} 42. Kxg4 {[%clk 0:00:14.2]} 42... Ke8 {[%clk 0:01:21.5]} 43.
Kg5 {[%clk 0:00:14]} 43... Bd8 {[%clk 0:01:10.8]} 44. Kh6 {[%clk 0:00:12.7]}
44... Bxf6 {[%clk 0:01:09.1]} 45. exf6 {[%clk 0:00:13.6]} 45... Kf8 {[%clk
0:01:09.4]} 46. Kh7 {[%clk 0:00:12.7]} 46... Ba8 {[%clk 0:01:08.3]} 47. Bxg6
{[%clk 0:00:08.3]} 47... fxg6 {[%clk 0:01:05.6]} 48. Kxg6 {[%clk 0:00:09.2]}
48... Bb7 {[%clk 0:00:59.9]} 49. f7 {[%clk 0:00:09.6]} 49... Bc8 {[%clk
0:00:59.8]} 50. Kf6 {[%clk 0:00:10.3]} 50... e5 {[%clk 0:00:25.8]} 51. fxe5
{[%clk 0:00:11.2]} 51... Bd7 {[%clk 0:00:05.6]} 52. e6 {[%clk 0:00:12.1]} 52...
Bxe6 {[%clk 0:00:05.1]} 53. Kxe6 {[%clk 0:00:12.2]} 53... Kg7 {[%clk 0:00:06]}
54. Ke7 {[%clk 0:00:12.5]} 54... Kg6 {[%clk 0:00:06.9]} 55. f8=Q {[%clk
0:00:12.8]} 1-0

[Event "Early-Titled-Tuesday-Blitz-March-26-2024"]
[Site "Chess.com"]
[Date "2024.03.26"]
[Round "1"]
[White "SaiAgni_98"]
[Black "wonderfultime"]
[Result "0-1"]
[WhiteElo "2530"]
[BlackElo "3005"]
[TimeControl "180+1"]
[EndTime "8:07:56 PDT"]
[Termination "wonderfultime won by resignation"]

1. e4 {[%clk 0:03:00.9]} 1... e5 {[%clk 0:02:56.8]} 2. Nf3 {[%clk 0:03:00.5]}
2... Nc6 {[%clk 0:02:56]} 3. Bc4 {[%clk 0:03:00.7]} 3... Bc5 {[%clk 0:02:55.3]}
4. d3 {[%clk 0:03:00]} 4... d6 {[%clk 0:02:54]} 5. Nc3 {[%clk 0:03:00]} 5... Nf6
{[%clk 0:02:54.1]} 6. Na4 {[%clk 0:02:59.8]} 6... Bb6 {[%clk 0:02:52.8]} 7. Nxb6
{[%clk 0:02:59.6]} 7... axb6 {[%clk 0:02:53.7]} 8. a3 {[%clk 0:03:00]} 8... h6
{[%clk 0:02:52.8]} 9. h3 {[%clk 0:02:59.8]} 9... O-O {[%clk 0:02:51.5]} 10. O-O
{[%clk 0:03:00]} 10... Be6 {[%clk 0:02:51.5]} 11. Bxe6 {[%clk 0:02:54.6]} 11...
fxe6 {[%clk 0:02:52.4]} 12. c3 {[%clk 0:02:45.3]} 12... Qe8 {[%clk 0:02:43.2]}
13. Re1 {[%clk 0:02:39.1]} 13... Nh5 {[%clk 0:02:35.6]} 14. d4 {[%clk
0:02:37.3]} 14... exd4 {[%clk 0:02:30.9]} 15. Nxd4 {[%clk 0:02:34.4]} 15... Ne5
{[%clk 0:02:08.3]} 16. Qb3 {[%clk 0:02:16]} 16... Rf6 {[%clk 0:01:48.1]} 17. f4
{[%clk 0:02:15.9]} 17... Nd3 {[%clk 0:01:47]} 18. Rf1 {[%clk 0:02:07.2]} 18...
Nhxf4 {[%clk 0:01:22.1]} 19. Bxf4 {[%clk 0:01:53.7]} 19... Nxf4 {[%clk 0:01:23]}
20. Rxf4 {[%clk 0:00:52]} 20... Rxf4 {[%clk 0:01:21.6]} 21. Nxe6 {[%clk
0:00:52.4]} 21... Qf7 {[%clk 0:01:13.5]} 22. Qd5 {[%clk 0:00:46.3]} 22... c6
{[%clk 0:01:07.3]} 23. Qd2 {[%clk 0:00:41.8]} 23... Rxe4 {[%clk 0:01:02.7]} 24.
Nd4 {[%clk 0:00:42.3]} 24... Rf8 {[%clk 0:01:02.8]} 25. Nf3 {[%clk 0:00:40.4]}
25... d5 {[%clk 0:01:02.8]} 26. Rf1 {[%clk 0:00:39.2]} 26... Qe7 {[%clk
0:01:03.5]} 27. Rf2 {[%clk 0:00:35.3]} 27... b5 {[%clk 0:01:02.4]} 28. Qd3
{[%clk 0:00:33.3]} 28... Qc5 {[%clk 0:00:52.9]} 29. Qd2 {[%clk 0:00:27.9]} 29...
Qe3 {[%clk 0:00:50.6]} 30. Qd1 {[%clk 0:00:25.5]} 30... Qc5 {[%clk 0:00:46.2]}
31. Qd2 {[%clk 0:00:25.2]} 31... Rfe8 {[%clk 0:00:39.9]} 32. Kh2 {[%clk
0:00:20.3]} 32... Qd6+ {[%clk 0:00:39.2]} 33. Kg1 {[%clk 0:00:20.8]} 33... Qf4
{[%clk 0:00:39.7]} 34. Qd1 {[%clk 0:00:18.3]} 34... Qg3 {[%clk 0:00:29.4]} 35.
Qd2 {[%clk 0:00:18.1]} 35... Re3 {[%clk 0:00:29.4]} 36. Qc2 {[%clk 0:00:16.7]}
36... Re1+ {[%clk 0:00:25.9]} 37. Nxe1 {[%clk 0:00:15.8]} 37... Rxe1+ {[%clk
0:00:26.8]} 38. Rf1 {[%clk 0:00:15.4]} 38... Qe3+ {[%clk 0:00:27.5]} 39. Qf2
{[%clk 0:00:15.9]} 39... Rxf1+ {[%clk 0:00:27.2]} 40. Kxf1 {[%clk 0:00:16]}
40... Qc1+ {[%clk 0:00:27.9]} 41. Qe1 {[%clk 0:00:15.9]} 41... Qxe1+ {[%clk
0:00:28.2]} 42. Kxe1 {[%clk 0:00:16.3]} 42... Kf7 {[%clk 0:00:28.4]} 43. Ke2
{[%clk 0:00:17.2]} 43... Ke6 {[%clk 0:00:28.3]} 44. Ke3 {[%clk 0:00:18.1]} 44...
Ke5 {[%clk 0:00:26.6]} 45. b4 {[%clk 0:00:17.5]} 45... b6 {[%clk 0:00:26.6]} 46.
g3 {[%clk 0:00:15.2]} 46... c5 {[%clk 0:00:26.7]} 47. Kd3 {[%clk 0:00:15.5]}
47... h5 {[%clk 0:00:25.6]} 48. Ke3 {[%clk 0:00:14.7]} 48... g5 {[%clk
0:00:25.8]} 49. Kd3 {[%clk 0:00:12.4]} 49... h4 {[%clk 0:00:26.2]} 50. gxh4
{[%clk 0:00:13.1]} 50... gxh4 {[%clk 0:00:27.1]} 51. Ke3 {[%clk 0:00:14]} 51...
c4 {[%clk 0:00:24.1]} 52. Kf3 {[%clk 0:00:13.2]} 52... d4 {[%clk 0:00:24.5]} 53.
cxd4+ {[%clk 0:00:11.1]} 53... Kxd4 {[%clk 0:00:25.4]} 54. Ke2 {[%clk 0:00:12]}
54... Kc3 {[%clk 0:00:25.9]} 0-1

[Event "Early-Titled-Tuesday-Blitz-March-26-2024"]
[Site "Chess.com"]
[Date "2024.03.26"]
[Round "1"]
[White "Davidalhesa2007"]
[Black "Chess_Gainz"]
[Result "0-1"]
[WhiteElo "1867"]
[BlackElo "2562"]
[TimeControl "180+1"]
[EndTime "8:07:56 PDT"]
[Termination "Chess_Gainz won by checkmate"]

1. d4 {[%clk 0:02:59.1]} 1... d6 {[%clk 0:02:56.6]} 2. Nc3 {[%clk 0:02:59]} 2...
Nf6 {[%clk 0:02:56.1]} 3. Bf4 {[%clk 0:02:57.2]} 3... Nbd7 {[%clk 0:02:55.8]} 4.
e3 {[%clk 0:02:56.9]} 4... e5 {[%clk 0:02:37.6]} 5. dxe5 {[%clk 0:02:48.9]} 5...
dxe5 {[%clk 0:02:37.6]} 6. Bg3 {[%clk 0:02:45.2]} 6... Bb4 {[%clk 0:02:26.3]} 7.
Ne2 {[%clk 0:02:43.3]} 7... O-O {[%clk 0:02:14.6]} 8. a3 {[%clk 0:02:41.6]} 8...
Be7 {[%clk 0:02:09.8]} 9. Nc1 {[%clk 0:02:27]} 9... c6 {[%clk 0:01:59.4]} 10.
Bc4 {[%clk 0:02:15.6]} 10... b5 {[%clk 0:01:49.6]} 11. Bb3 {[%clk 0:02:15]}
11... Qc7 {[%clk 0:01:48.9]} 12. O-O {[%clk 0:02:10.5]} 12... Nc5 {[%clk
0:01:46.2]} 13. Ba2 {[%clk 0:02:08.4]} 13... Rd8 {[%clk 0:01:34.8]} 14. Qe2
{[%clk 0:02:04.3]} 14... Be6 {[%clk 0:01:05.9]} 15. Bxe6 {[%clk 0:01:41.5]}
15... Nxe6 {[%clk 0:01:05.9]} 16. Nd3 {[%clk 0:01:37.6]} 16... Nd7 {[%clk
0:01:04.8]} 17. e4 {[%clk 0:00:43]} 17... Nd4 {[%clk 0:00:46.2]} 18. Qd1 {[%clk
0:00:36.6]} 18... Bd6 {[%clk 0:00:29.5]} 19. Ne2 {[%clk 0:00:31.5]} 19... Nxe2+
{[%clk 0:00:25.8]} 20. Qxe2 {[%clk 0:00:32.4]} 20... Nf8 {[%clk 0:00:25.8]} 21.
f3 {[%clk 0:00:28.6]} 21... Ne6 {[%clk 0:00:25.3]} 22. Bf2 {[%clk 0:00:27.3]}
22... a5 {[%clk 0:00:23.2]} 23. c3 {[%clk 0:00:27.1]} 23... Be7 {[%clk
0:00:15.7]} 24. Rfd1 {[%clk 0:00:26]} 24... Bg5 {[%clk 0:00:14.1]} 25. g3 {[%clk
0:00:24.7]} 25... Rd7 {[%clk 0:00:14.3]} 26. h4 {[%clk 0:00:24.7]} 26... Bf6
{[%clk 0:00:12.5]} 27. Nc5 {[%clk 0:00:23.6]} 27... Nxc5 {[%clk 0:00:11.8]} 28.
Bxc5 {[%clk 0:00:24.5]} 28... Rad8 {[%clk 0:00:12]} 29. Rxd7 {[%clk 0:00:24.1]}
29... Rxd7 {[%clk 0:00:12.9]} 30. Rd1 {[%clk 0:00:24.1]} 30... h6 {[%clk
0:00:09.4]} 31. Kf2 {[%clk 0:00:22.1]} 31... Be7 {[%clk 0:00:08]} 32. Rxd7
{[%clk 0:00:18.4]} 32... Qxd7 {[%clk 0:00:07.8]} 33. Bxe7 {[%clk 0:00:19.2]}
33... Qxe7 {[%clk 0:00:08.7]} 34. Qd3 {[%clk 0:00:19.6]} 34... Qc5+ {[%clk
0:00:08.9]} 35. Ke2 {[%clk 0:00:18.9]} 35... g6 {[%clk 0:00:07]} 36. Qe3 {[%clk
0:00:17.4]} 36... Qc4+ {[%clk 0:00:06.6]} 37. Qd3 {[%clk 0:00:18]} 37... Qb3
{[%clk 0:00:07.2]} 38. Qd8+ {[%clk 0:00:17.9]} 38... Kg7 {[%clk 0:00:07.4]} 39.
Qe7 {[%clk 0:00:16.9]} 39... Qxb2+ {[%clk 0:00:07.6]} 40. Kf1 {[%clk 0:00:17]}
40... Qxc3 {[%clk 0:00:07.8]} 41. Kg2 {[%clk 0:00:16.7]} 41... Qd2+ {[%clk
0:00:07.3]} 42. Kh3 {[%clk 0:00:16.4]} 42... Qd4 {[%clk 0:00:07.3]} 43. Qe8
{[%clk 0:00:14.1]} 43... b4 {[%clk 0:00:07.2]} 44. Qxc6 {[%clk 0:00:14.2]} 44...
bxa3 {[%clk 0:00:07.3]} 45. Qc1 {[%clk 0:00:14.6]} 45... Qb2 {[%clk 0:00:06.6]}
46. Qc8 {[%clk 0:00:13.1]} 46... a2 {[%clk 0:00:06.6]} 47. h5 {[%clk 0:00:13.4]}
47... a1=Q {[%clk 0:00:06.4]} 48. hxg6 {[%clk 0:00:13.3]} 48... Qh1+ {[%clk
0:00:07.1]} 49. Kg4 {[%clk 0:00:13.2]} 49... h5+ {[%clk 0:00:05.4]} 50. Kf5
{[%clk 0:00:13.3]} 50... fxg6+ {[%clk 0:00:05.8]} 51. Kg5 {[%clk 0:00:12.6]}
51... Qb6 {[%clk 0:00:03.1]} 52. Qd7+ {[%clk 0:00:11.8]} 52... Kf8 {[%clk
0:00:02.5]} 53. Qd8+ {[%clk 0:00:11.9]} 53... Qxd8+ {[%clk 0:00:02]} 54. Kxg6
{[%clk 0:00:11.7]} 54... Qd6+ {[%clk 0:00:02.5]} 55. Kg5 {[%clk 0:00:11.9]}
55... Qg2 {[%clk 0:00:02.5]} 56. Kxh5 {[%clk 0:00:12.1]} 56... Qxg3 {[%clk
0:00:03]} 57. f4 {[%clk 0:00:12.4]} 57... Qdg6# {[%clk 0:00:03.7]} 0-1